[Event "AI Cup Div-2 2023"]
[Site "Online"]
[Date "2023.09.27"]
[Round "53.3"]
[White "Dominguez Perez, Leinier"]
[Black "Kuzubov, Yuriy"]
[Result "0-1"]
[ECO "C55"]
[WhiteElo "2745"]
[BlackElo "2625"]
[Annotator "TA"]
[PlyCount "58"]
[EventDate "2023.09.18"]
[EventType "k.o."]
[EventCountry "NET"]
[SourceTitle "playchess.com"]
[Source "ChessBase"]
[SourceQuality "1"]
[TimeControl "900+3"]

{[%evp 11,58,12,12,6,16,9,12,13,14,0,6,0,0,-8,-6,-25,-35,-33,-31,-37,-47,-44,-44,-45,-30,-68,-42,-56,-62,-69,-55,-89,-78,-139,-136,-137,-137,-423,-138,-292,-73,-50,-18,-1221,-1056,-29996,-29997,-29997,-29998]} 1. e4 {[%emt 0:00:06]} e5 {[%emt 0:03:07]} 2. Nf3 {[%emt 0:00:05]} Nc6 {[%emt 0:00:06]} 3. Bc4 {[%emt 0:00:04]} Be7 {[%emt 0:00:09]} 4. O-O {[%emt 0:00:18]} Nf6 {[%emt 0:00:15]} 5. d3 {[%emt 0:00:07]} O-O {[%emt 0:00:09]} 6. Nc3 {[%emt 0:00:06]} d6 {[%emt 0:00:10]} 7. a4 {[%emt 0:00:06] 7.a3 is setting a new trend. C55: Two Knights: 4 d3, 4 d4 exd4 5 e5 and Max Lange Attack.} Be6 {[%emt 0:00:24]} 8. Nd5 {[%emt 0:00:24]} Bxd5 {[%emt 0:01:12]} 9. exd5 {[%emt 0:00:05] The position is equal.} Nb8 {[%emt 0:00:03]} 10. Re1 {[%emt 0:02:54] [#]} c6 $146 {[%emt 0:01:04]} ({Predecessor:} 10... a5 11. d4 exd4 12. Nxd4 Re8 13. Qf3 Nbd7 14. Bb5 Bf8 15. Bg5 Re5 16. Bxd7 Rxg5 {1-0 Turner,L (1891)-De Coverly,R (1936) Witney op-A 9th 2022 (4)}) 11. dxc6 {[%emt 0:00:06]} bxc6 {[%emt 0:00:07]} 12. Bb3 {[%emt 0:01:34]} Nbd7 {[%emt 0:00:15]} 13. d4 {[%emt 0:00:21][%cal Rd4e5]} e4 {[%emt 0:00:15]} 14. Nd2 {[%emt 0:00:05]} d5 {[%emt 0:00:06]} 15. f3 {[%emt 0:00:03]} exf3 $1 {[%emt 0:00:37]} 16. Nxf3 {[%emt 0:00:12]} Bd6 {[%emt 0:00:06] Dodges Bf4} 17. c4 {[%emt 0:01:37]} Rb8 {[%emt 0:00:13]} 18. Qd3 {[%emt 0:01:11]} Re8 {[%emt 0:00:41] Hoping for ...Rxe1+.} 19. Rxe8+ {[%emt 0:01:28]} Qxe8 {[%emt 0:00:05]} 20. cxd5 {[%emt 0:00:09]} cxd5 {[%emt 0:00:18]} 21. Ba2 {[%emt 0:00:38]} h6 {[%emt 0:00:23]} 22. Bd2 {[%emt 0:00:54]} ({White should play} 22. Qc2) 22... Rxb2 $17 {[%emt 0:00:15]} 23. Re1 {[%emt 0:00:29]} Qb8 {[%emt 0:00:09] Black is more active.} 24. Ra1 {[%emt 0:00:18][%mdl 8192]} (24. Rb1 $17 {is the only way for White.}) 24... Ne4 $2 {[%emt 0:00:27]} (24... Ng4 $19 {has better winning chances.} 25. h3 Nc5) 25. Bc1 $2 {[%emt 0:00:27] [#]} (25. Be1 $17 {might work better.}) 25... Ndf6 $1 {[%emt 0:02:09]} 26. Bxb2 {[%emt 0:00:05]} (26. Bxd5 Nxd5) 26... Qxb2 {[%emt 0:00:05]} 27. Qf1 $2 {[%emt 0:00:04][%mdl 8192] White is weak on the dark squares} (27. Qb1 $11 Qf2+ 28. Kh1) 27... Ng4 $19 {[%emt 0:00:18] A dynamic duo of knights.} 28. Bxd5 {[%emt 0:00:08] [#]} Bxh2+ $1 {[%emt 0:00:09][%mdl 576] Deflection} 29. Nxh2 {[%emt 0:00:09]} Qxd4+ {[%emt 0:00:04] Excellently played by Kuzubov!   Weighted Error Value: White=0.72/Black=0.31} 0-1

[Event "AI Cup Div-2 2023"]
[Site "Online"]
[Date "2023.09.28"]
[Round "54.1"]
[White "Andreikin, Dmitry"]
[Black "Caruana, Fabiano"]
[Result "0-1"]
[ECO "A07"]
[WhiteElo "2729"]
[BlackElo "2786"]
[Annotator "TA"]
[PlyCount "82"]
[EventDate "2023.09.18"]
[EventType "k.o."]
[EventCountry "NET"]
[SourceTitle "playchess.com"]
[Source "ChessBase"]
[SourceQuality "1"]
[TimeControl "900+3"]

{[%evp 9,82,-2,19,10,19,-4,35,0,0,-25,-27,-47,-48,-52,-41,-49,-42,-59,-50,-95,-49,-72,-39,-48,-60,-75,-73,-75,-66,-93,0,0,-12,-33,-38,-52,-49,-58,-61,-199,-205,-194,0,0,0,0,0,0,33,39,39,33,33,33,72,-2,-2,-2,-2,-5,0,0,0,-123,-123,-112,-115,-1362,-1187,-1367,-1352,-1335,-1307,-1355,-1330]} 1. Nf3 {[%emt 0:00:05]} d5 {[%emt 0:00:10]} 2. g3 {[%emt 0:00:01]} Nf6 {[%emt 0:00:02]} 3. Bg2 {[%emt 0:00:02]} e6 {[%emt 0:00:01]} 4. O-O {[%emt 0:00:02]} Be7 {[%emt 0:00:02]} 5. d3 {[%emt 0:00:05]} a5 {[%emt 0:00:04][%cal Ba7a5,Ba5a4,Ba4a3][%mdl 32] [#]} 6. Bf4 $146 {[%emt 0:00:45] A07: Réti Opening: New York and Capablanca Systems.} ({Predecessor:} 6. a4 b6 7. Nbd2 Bb7 8. e4 dxe4 9. Ng5 Nbd7 10. Ndxe4 Nxe4 11. Nxe4 Qc8 12. Qg4 Kf8 13. Qe2 {1-0 Stukopin,A (2590)-Hevia Alejano,C (2488) American op 53rd 2017 (2)}) 6... a4 {[%emt 0:00:29]} 7. e4 {[%emt 0:00:35]} O-O {[%emt 0:00:07]} 8. e5 {[%emt 0:01:28] White is slightly better.} Nfd7 {[%emt 0:00:04]} 9. h4 {[%emt 0:01:43]} b5 {[%emt 0:01:00][%cal Bb7b5,Bb5b4][%mdl 32]} 10. Nbd2 {[%emt 0:01:28]} a3 {[%emt 0:00:40]} 11. b3 {[%emt 0:00:01]} b4 {[%emt 0:00:04]} 12. Nh2 {[%emt 0:01:11]} c5 {[%emt 0:02:18]} 13. Ndf3 {[%emt 0:00:23]} Nc6 {[%emt 0:00:04]} 14. Ng4 {[%emt 0:00:25]} Bb7 {[%emt 0:01:11]} ({Black should play} 14... Na7 $17) 15. Qd2 {[%emt 0:00:17]} Rc8 {[%emt 0:00:37]} (15... h5 $5 {[%cal Rh5g4]} 16. Ngh2 Qc7 $15) 16. h5 {[%emt 0:00:32]} h6 {[%emt 0:00:34]} 17. Rad1 {[%emt 0:00:45]} Re8 {[%emt 0:00:25]} (17... Kh7 {is interesting.} 18. Rfe1 Ba6 19. Be3 Rh8) 18. Rfe1 {[%emt 0:00:03]} Bf8 {[%emt 0:00:09]} 19. Ngh2 {[%emt 0:01:36]} f6 {[%emt 0:04:56]} ({Black should try} 19... Ba6 $17) 20. exf6 $11 {[%emt 0:00:21]} Qxf6 {[%emt 0:00:00]} ({Resist} 20... Nxf6 21. Bh3 $16) 21. Bh3 {[%emt 0:00:15]} Qf7 {[%emt 0:00:14]} 22. Re2 {[%emt 0:01:26]} e5 $1 {[%emt 0:00:14]} ({Reject} 22... Qxh5 23. Bxe6+ Rxe6 24. Rxe6 $11) 23. Bxd7 {[%emt 0:00:17]} Qxd7 {[%emt 0:00:00]} 24. Bxe5 {[%emt 0:00:08] [#]} (24. Nxe5 $15 Nxe5 25. Bxe5) 24... d4 $1 $19 {[%emt 0:00:06]} 25. Qf4 {[%emt 0:00:20]} Nxe5 {[%emt 0:00:19]} (25... Ne7 $19 {Threatens to win with ...Nd5.} 26. Nd2 Nd5) 26. Nxe5 $11 {[%emt 0:00:08]} Qd5 {[%emt 0:00:02][%csl Gb7][%cal Rd5h1] Dancing on a razor blade.} 27. f3 $1 {[%emt 0:00:11]} Bd6 {[%emt 0:00:18]} 28. Rde1 {[%emt 0:00:02]} Re7 {[%emt 0:00:37]} (28... Rcd8 $5) 29. Nhg4 {[%emt 0:01:05] Excellent horsemanship.} Rce8 {[%emt 0:00:51]} 30. Qf5 {[%emt 0:00:24]} Qe6 {[%emt 0:00:20]} 31. Qxe6+ {[%emt 0:00:04]} Rxe6 {[%emt 0:00:00] [#]} 32. f4 {[%emt 0:00:02] [#]} (32. Kf2 $1 $16) 32... Bf3 $1 $36 {[%emt 0:00:02][%mdl 2112] aiming for ...Bxg4. Pin. Black fights for an advantage.} 33. Kf2 {[%emt 0:00:22]} Bxe2 {[%emt 0:00:04]} 34. Rxe2 {[%emt 0:00:00]} Rf8 {[%emt 0:00:15] White must now prevent ...Rf5.} 35. Kf3 {[%emt 0:00:04]} Rf5 {[%emt 0:00:06]} 36. Ke4 {[%emt 0:00:03]} (36. Rh2 $1 $11) 36... Rxh5 $17 {[%emt 0:00:08] Strongly threatening ...Bxe5. Black is more active.} 37. Kd5 {[%emt 0:00:00]} Rg6 {[%emt 0:00:05]} 38. Rh2 $2 {[%emt 0:00:08][%mdl 8192]} (38. Rg2 $17) 38... Rxh2 $19 {[%emt 0:00:04] Black is clearly winning.} 39. Nxg6 {[%emt 0:00:02]} Rxc2 {[%emt 0:00:03]} 40. Kxd6 {[%emt 0:00:00]} Rxa2 {[%emt 0:00:01]} 41. f5 {[%emt 0:00:05]} Re2 {[%emt 0:00:05] Weighted Error Value: White=0.38/Black=0.18 (very precise)} 0-1

[Event "AI Cup Div-2 2023"]
[Site "Online"]
[Date "2023.09.28"]
[Round "54.1"]
[White "Sarana, Alexey"]
[Black "Kuzubov, Yuriy"]
[Result "1/2-1/2"]
[ECO "A42"]
[WhiteElo "2693"]
[BlackElo "2625"]
[Annotator "TA"]
[PlyCount "98"]
[EventDate "2023.09.18"]
[EventType "k.o."]
[EventCountry "NET"]
[SourceTitle "playchess.com"]
[Source "ChessBase"]
[SourceQuality "1"]
[TimeControl "900+3"]

{[%evp 17,98,84,75,66,64,25,46,39,100,50,120,118,114,109,140,61,79,63,80,76,112,33,38,11,68,46,66,69,64,29,53,4,25,0,0,0,0,0,0,0,8,8,79,28,89,89,88,17,21,25,41,8,18,0,0,-14,0,0,0,0,0,0,0,0,0,0,0,0,0,0,0,0,0,0,0,0,0,0,0,0,0,0,0]} 1. d4 {[%emt 0:00:04]} g6 {[%emt 0:00:06]} 2. e4 {[%emt 0:00:09]} Bg7 {[%emt 0:00:01]} 3. c4 {[%emt 0:00:07]} d6 {[%emt 0:00:05]} 4. Nc3 {[%emt 0:00:03]} Nc6 {[%emt 0:00:12]} 5. Be3 {[%emt 0:00:03]} e5 {[%emt 0:00:13]} 6. d5 {[%emt 0:00:03]} Nd4 {[%emt 0:00:21]} 7. Nge2 {[%emt 0:00:06]} Nxe2 {[%emt 0:00:08]} 8. Bxe2 {[%emt 0:00:01]} f5 {[%emt 0:00:01]} 9. exf5 {[%emt 0:00:25]} gxf5 {[%emt 0:00:02]} 10. f4 {[%emt 0:00:38] A42: Modern Defence: Averbakh Variation.} e4 {[%emt 0:01:20]} 11. Bd4 {[%emt 0:01:14]} Nf6 {[%emt 0:01:01] [#]} 12. Qd2 $146 {[%emt 0:00:36] White is slightly better.} ({Predecessor:} 12. Bh5+ Kf8 13. Be2 c5 14. dxc6 bxc6 15. Qd2 Be6 16. Rd1 Rg8 17. Bc5 Ne8 18. Bxd6+ Nxd6 19. Qxd6+ Qxd6 20. Rxd6 {1-0 Kreutzkamp,H (2195)-Luebeck,S (2007) Schleswig Holstein-ch Seniors op 2014 (4)}) 12... O-O {[%emt 0:02:07]} (12... Qe7 $14) 13. Nd1 {[%emt 0:00:35] White is much more active. The black rooks are badly placed.} (13. O-O-O $16) 13... c5 {[%emt 0:00:21]} (13... Qe7 $14) 14. dxc6 $16 {[%emt 0:00:08]} bxc6 {[%emt 0:01:09]} 15. Ne3 {[%emt 0:00:03]} Be6 {[%emt 0:00:30] [#]} 16. O-O {[%emt 0:00:39]} (16. O-O-O $1 $16) 16... a5 {[%emt 0:00:41]} 17. Rad1 {[%emt 0:00:04]} (17. Kh1 $5 {[%cal Rg2g4]}) 17... a4 {[%emt 0:00:26]} 18. Kh1 {[%emt 0:00:02][%cal Og2g4]} d5 {[%emt 0:00:32]} 19. cxd5 {[%emt 0:00:08]} (19. g4 $16 fxg4 20. f5) 19... Nxd5 $14 {[%emt 0:00:34]} 20. Bc4 {[%emt 0:00:41]} Rb8 {[%emt 0:00:40]} (20... Bxd4 $11 21. Qxd4 Qf6) 21. Bxd5 {[%emt 0:00:48]} Bxd5 {[%emt 0:00:05]} 22. Bxg7 {[%emt 0:00:37]} Kxg7 {[%emt 0:00:02]} 23. Qc3+ {[%emt 0:00:02]} Kg8 {[%emt 0:00:30]} 24. Nc4 {[%emt 0:03:14]} (24. Qa3 $14 {deserves consideration.}) 24... Rb7 {[%emt 0:02:03] Black is weak on the dark squares} 25. Rfe1 {[%emt 0:01:03]} Qf6 {[%emt 0:00:34]} 26. Ne5 {[%emt 0:00:02]} Bxa2 {[%emt 0:00:34]} 27. Rd4 {[%emt 0:00:08]} Bd5 {[%emt 0:00:23]} 28. Rxa4 {[%emt 0:00:06]} Rb3 {[%emt 0:00:07]} 29. Qd4 {[%emt 0:00:03]} Qh4 {[%emt 0:00:11] Dodges Qf2} (29... Rfb8 $11) 30. Rg1 {[%emt 0:00:40]} (30. Rea1 $16) 30... Qe7 {[%emt 0:00:40]} (30... Qxf4 $2 31. g4 e3+ 32. Qxd5+ cxd5 33. gxf5+ Kh8 34. Rxf4 $18) (30... Rb7 $11) 31. Ra7 $16 {[%emt 0:01:11]} Rb7 {[%emt 0:00:03] [#]} 32. Rxb7 {[%emt 0:00:02]} ({White should try} 32. Ra3 $1 $16 {[%cal Ra3g3]} Qf6 33. b4) 32... Qxb7 $11 {[%emt 0:00:00]} 33. h3 {[%emt 0:00:00]} Rb8 {[%emt 0:00:05]} 34. Rb1 {[%emt 0:00:57]} Qb6 {[%emt 0:00:07] The position is equal.} (34... Qg7 {keeps more tension.} 35. b4 e3 36. Rb2 Qg3) 35. Qd2 {[%emt 0:00:23]} (35. Qc3 $5 {[%cal Re5d7]} Qb3 36. Qc5 $11) 35... e3 {[%emt 0:00:26]} 36. Qe1 {[%emt 0:00:01]} Qd4 {[%emt 0:00:08]} 37. Qg3+ {[%emt 0:00:39]} Kh8 {[%emt 0:00:01] And now ...Rg8 would win.} 38. Qg5 {[%emt 0:00:02]} Qe4 {[%emt 0:00:15]} 39. Ra1 {[%emt 0:00:54] Threatens to win with Ra7. Some like it hot} e2 {[%emt 0:00:02]} (39... Rxb2 $2 {leads to mate.} 40. Qf6+ Kg8 41. Ra8+) 40. Qf6+ {[%emt 0:00:02]} Kg8 {[%emt 0:00:01][%csl Gd5][%cal Re4g2]} 41. Qg5+ {[%emt 0:00:00]} Kh8 {[%emt 0:00:01]} 42. Kh2 $40 {[%emt 0:00:14][%mdl 128] White is up to no good.} e1=Q {[%emt 0:00:08]} 43. Qf6+ {[%emt 0:00:02]} Kg8 {[%emt 0:00:01][%csl Gd5][%cal Re4g2]} 44. Qg5+ {[%emt 0:00:01]} Kh8 {[%emt 0:00:01]} 45. Rxe1 {[%emt 0:00:01]} Qxe1 {[%emt 0:00:02]} 46. Qf6+ {[%emt 0:00:04]} Kg8 {[%emt 0:00:00]} 47. Qg5+ {[%emt 0:00:01]} Kh8 {[%emt 0:00:07] ...Rg8 would be deadly.} 48. Qf6+ {[%emt 0:00:08]} Kg8 {[%emt 0:00:01] Hoping for ...Rb7.} 49. Qg5+ {[%emt 0:00:01]} Kh8 {[%emt 0:00:04] Weighted Error Value: White=0.17 (very precise) /Black=0.20 (precise)} 1/2-1/2

[Event "AI Cup Div-2 2023"]
[Site "Online"]
[Date "2023.09.28"]
[Round "54.2"]
[White "Caruana, Fabiano"]
[Black "Andreikin, Dmitry"]
[Result "1/2-1/2"]
[ECO "B30"]
[WhiteElo "2786"]
[BlackElo "2729"]
[Annotator "TA"]
[PlyCount "259"]
[EventDate "2023.09.18"]
[EventType "k.o."]
[EventCountry "NET"]
[SourceTitle "playchess.com"]
[Source "ChessBase"]
[SourceQuality "1"]
[TimeControl "900+3"]

{[%evp 115,259,-63,-41,-63,-41,-63,-41,-63,-63,-63,-41,-63,-41,-63,-41,-41,-41,-41,-41,-41,-41,-41,-41,-41,-41,-41,-41,-41,-11,-41,-41,-41,-41,-41,-41,-41,-41,-41,-41,-41,0,-41,-41,-41,-15,-15,-15,-15,-15,-15,-15,-15,-15,-15,-15,-32,-32,-32,0,-15,-15,-15,-15,-15,0,-15,-15,-15,-15,-15,-15,-15,-15,-15,-15,-15,-15,-15,-15,-15,-15,-15,-15,-15,-15,-15,-15,-15,-15,-15,-15,-15,-15,-15,-15,-15,-15,-15,-15,-15,-15,-15,-15,-25,0,-15,0,-15,0,-15,-15,-15,-15,-15,0,-15,-15,-15,-15,-15,-15,-15,0,-8,0,0,0,0,0,0,0,0,0,0,0,0,0,0,0,-8,-8,-8,-8,-8,0,0]} 1. e4 {[%emt 0:00:03]} c5 {[%emt 0:00:08]} 2. Nf3 {[%emt 0:00:03]} Nc6 {[%emt 0:00:01]} 3. Bb5 {[%emt 0:00:12]} Nf6 {[%emt 0:00:35]} 4. Nc3 {[%emt 0:00:14]} g6 {[%emt 0:00:04]} 5. e5 {[%emt 0:00:05]} Ng4 {[%emt 0:00:16]} 6. Bxc6 {[%emt 0:00:01]} dxc6 {[%emt 0:00:00]} 7. d3 {[%emt 0:00:07]} Bg7 {[%emt 0:00:02]} 8. Qe2 {[%emt 0:00:07]} Nh6 {[%emt 0:00:08]} 9. Ne4 {[%emt 0:00:26]} Nf5 {[%emt 0:00:01]} 10. c3 {[%emt 0:00:28]} b6 {[%emt 0:00:03]} 11. O-O {[%emt 0:00:02]} O-O {[%emt 0:00:07]} 12. Bf4 {[%emt 0:00:08]} Qd5 {[%emt 0:00:07]} 13. h3 {[%emt 0:00:07]} Ba6 {[%emt 0:00:12]} 14. Rad1 {[%emt 0:02:04]} Rad8 {[%emt 0:00:04]} 15. c4 {[%emt 0:00:01]} Nd4 {[%emt 0:00:05]} 16. Qe3 {[%emt 0:00:11]} Nxf3+ {[%emt 0:00:08]} 17. Qxf3 {[%emt 0:00:00]} Qd4 {[%emt 0:00:00]} 18. Nc3 {[%emt 0:00:17]} Bxe5 {[%emt 0:00:10]} 19. Bxe5 {[%emt 0:00:00]} Qxe5 {[%emt 0:00:01]} 20. Qxc6 {[%emt 0:00:00]} Qb8 {[%emt 0:01:56]} 21. Qe4 {[%emt 0:00:03]} e6 {[%emt 0:00:31]} 22. Qe3 {[%emt 0:00:27]} Rd4 {[%emt 0:00:15]} 23. b3 {[%emt 0:00:15]} Rfd8 {[%emt 0:00:12]} 24. Rd2 {[%emt 0:00:17]} Bb7 {[%emt 0:00:05]} 25. Rfd1 {[%emt 0:00:05]} e5 {[%emt 0:00:12]} 26. a3 {[%emt 0:01:05]} Bc6 {[%emt 0:00:55]} 27. b4 {[%emt 0:00:22]} Qd6 {[%emt 0:00:44]} 28. Ne2 {[%emt 0:01:17]} Rh4 {[%emt 0:00:01]} 29. bxc5 {[%emt 0:00:04]} bxc5 {[%emt 0:00:00]} 30. f3 {[%emt 0:00:10]} Rb8 {[%emt 0:00:20]} 31. Qf2 {[%emt 0:00:05]} Qe7 {[%emt 0:00:29]} 32. f4 {[%emt 0:01:22]} Re8 {[%emt 0:02:10]} 33. fxe5 {[%emt 0:00:20]} Rh5 {[%emt 0:00:04]} 34. d4 {[%emt 0:00:50]} Rf5 {[%emt 0:00:08]} 35. Qe3 {[%emt 0:00:01]} Rg5 {[%emt 0:00:14]} 36. Nf4 {[%emt 0:01:57]} cxd4 {[%emt 0:00:06]} 37. Qxd4 {[%emt 0:00:00]} Rxe5 {[%emt 0:00:46]} 38. Nd5 {[%emt 0:00:10]} Bxd5 {[%emt 0:00:56]} 39. cxd5 {[%emt 0:00:00]} Qxa3 {[%emt 0:00:01]} 40. d6 {[%emt 0:00:06]} Qg3 {[%emt 0:00:08]} 41. Rf2 {[%emt 0:00:11]} Re1+ {[%emt 0:01:59]} 42. Rxe1 {[%emt 0:00:02]} Rxe1+ {[%emt 0:00:01]} 43. Rf1 {[%emt 0:00:01]} Qe3+ {[%emt 0:00:35]} 44. Qxe3 {[%emt 0:00:02]} Rxe3 {[%emt 0:00:00]} 45. Ra1 {[%emt 0:00:02]} Rd3 {[%emt 0:00:03]} 46. Rxa7 {[%emt 0:00:13]} Rxd6 {[%emt 0:00:01]} 47. Kf2 {[%emt 0:00:03]} Rd3 {[%emt 0:00:02]} 48. h4 {[%emt 0:00:31]} Kg7 {[%emt 0:00:04]} 49. g3 {[%emt 0:00:06]} Rb3 {[%emt 0:00:14]} 50. Kg2 {[%emt 0:00:02]} Rb2+ {[%emt 0:00:04]} 51. Kf3 {[%emt 0:00:06]} Rb3+ {[%emt 0:00:00]} 52. Kg2 {[%emt 0:00:01]} Re3 {[%emt 0:00:04]} 53. Kf2 {[%emt 0:00:01]} Re6 {[%emt 0:00:01]} 54. Kf3 {[%emt 0:00:01]} Kf6 {[%emt 0:00:01]} 55. Kf2 {[%emt 0:00:03]} Re7 {[%emt 0:00:06]} 56. Ra5 {[%emt 0:00:02]} Re5 {[%emt 0:00:03]} 57. Ra7 {[%emt 0:00:02]} Rf5+ {[%emt 0:00:27]} 58. Kg2 {[%emt 0:00:01]} Kg7 {[%emt 0:00:01]} 59. Rb7 {[%emt 0:00:02]} Re5 {[%emt 0:00:20]} 60. Ra7 {[%emt 0:00:04]} Kf8 {[%emt 0:00:00]} 61. Kf3 {[%emt 0:00:03]} Re7 {[%emt 0:00:09]} 62. Ra6 {[%emt 0:00:02]} Kg7 {[%emt 0:00:02]} 63. Kf2 {[%emt 0:00:03]} Rb7 {[%emt 0:00:03]} 64. Kf3 {[%emt 0:00:02]} Kh6 {[%emt 0:00:01]} 65. g4 {[%emt 0:00:31]} Rb3+ {[%emt 0:00:06]} 66. Kg2 {[%emt 0:00:04]} Kg7 {[%emt 0:00:08]} 67. Rc6 {[%emt 0:00:06]} Re3 {[%emt 0:00:07]} 68. Ra6 {[%emt 0:00:02]} Re6 {[%emt 0:00:02]} 69. Ra7 {[%emt 0:00:02]} Kf6 {[%emt 0:00:03]} 70. g5+ {[%emt 0:00:16]} Kg7 {[%emt 0:00:03]} 71. Kg3 {[%emt 0:00:01]} Kf8 {[%emt 0:00:05]} 72. Ra8+ {[%emt 0:00:02]} Re8 {[%emt 0:00:01]} 73. Ra7 {[%emt 0:00:01]} Re7 {[%emt 0:00:01]} 74. Ra8+ {[%emt 0:00:01]} Kg7 {[%emt 0:00:00]} 75. Ra5 {[%emt 0:00:08]} Re3+ {[%emt 0:00:08]} 76. Kg2 {[%emt 0:00:24]} Re4 {[%emt 0:00:04]} 77. Kg3 {[%emt 0:00:02]} Re3+ {[%emt 0:00:11]} 78. Kg2 {[%emt 0:00:02]} h6 {[%emt 0:00:09]} 79. Rb5 {[%emt 0:00:22]} hxg5 {[%emt 0:00:07]} 80. hxg5 {[%emt 0:00:00]} Kf8 {[%emt 0:00:04]} 81. Kf2 {[%emt 0:00:01]} Rd3 {[%emt 0:00:02]} 82. Re5 {[%emt 0:00:02]} Rc3 {[%emt 0:00:04]} 83. Kg2 {[%emt 0:00:04]} Ra3 {[%emt 0:00:04]} 84. Kf2 {[%emt 0:00:01]} Rh3 {[%emt 0:00:04]} 85. Re1 {[%emt 0:00:37]} Rh5 {[%emt 0:00:09]} 86. Rg1 {[%emt 0:00:01]} Rh3 {[%emt 0:00:01]} 87. Re1 {[%emt 0:00:01]} Kg7 {[%emt 0:00:08]} 88. Re4 {[%emt 0:00:19]} Rh5 {[%emt 0:00:07]} 89. Rg4 $1 {[%emt 0:00:01]} Kf8 {[%emt 0:00:01]} 90. Kf3 {[%emt 0:00:06]} Ke7 {[%emt 0:00:03]} 91. Rg1 {[%emt 0:00:08]} Ke6 {[%emt 0:00:07]} 92. Kg4 {[%emt 0:00:02]} Rh2 {[%emt 0:00:05]} 93. Re1+ {[%emt 0:00:01]} Kd6 {[%emt 0:00:00]} 94. Rd1+ {[%emt 0:00:02]} Ke7 {[%emt 0:00:09]} 95. Re1+ {[%emt 0:00:01]} Kf8 {[%emt 0:00:01]} 96. Re3 {[%emt 0:00:02]} Rg2+ {[%emt 0:00:02]} 97. Kh4 {[%emt 0:00:06]} Rg1 {[%emt 0:00:04]} 98. Re2 $1 {[%emt 0:00:01]} Ra1 {[%emt 0:00:03]} 99. Kg4 {[%emt 0:00:03]} Ra4+ {[%emt 0:00:01]} 100. Kg3 {[%emt 0:00:02]} Rb4 {[%emt 0:00:00]} 101. Re1 {[%emt 0:00:01]} Rb6 {[%emt 0:00:05]} 102. Kf4 {[%emt 0:00:05]} Re6 {[%emt 0:00:06]} 103. Ra1 {[%emt 0:00:05]} Rd6 {[%emt 0:00:01]} 104. Re1 {[%emt 0:00:02]} Rd7 {[%emt 0:00:01]} 105. Ra1 {[%emt 0:00:02]} Rd4+ {[%emt 0:00:06]} 106. Kg3 {[%emt 0:00:03]} Ke7 {[%emt 0:00:01]} 107. Re1+ {[%emt 0:00:02]} Kd6 {[%emt 0:00:01]} 108. Rf1 {[%emt 0:00:06]} Ke6 {[%emt 0:00:01]} 109. Re1+ {[%emt 0:00:02]} Kd6 {[%emt 0:00:09]} 110. Rf1 {[%emt 0:00:02]} Ke7 {[%emt 0:00:01]} 111. Re1+ {[%emt 0:00:00]} Kf8 {[%emt 0:00:01]} 112. Re2 {[%emt 0:00:06]} Rd1 {[%emt 0:00:11]} 113. Kg4 {[%emt 0:00:02]} Rd8 {[%emt 0:00:14]} 114. Re1 {[%emt 0:00:02]} Rd6 {[%emt 0:00:02]} 115. Re2 {[%emt 0:00:02]} Re6 {[%emt 0:00:00]} 116. Ra2 {[%emt 0:00:01]} Re5 {[%emt 0:00:04]} 117. Kf4 {[%emt 0:00:03]} Rf5+ {[%emt 0:00:01]} 118. Kg4 {[%emt 0:00:01]} Ke7 {[%emt 0:00:03]} 119. Re2+ {[%emt 0:00:03]} Kd6 {[%emt 0:00:00]} 120. Re1 $1 {[%emt 0:00:06]} Kd5 {[%emt 0:00:02]} 121. Rd1+ {[%emt 0:00:03]} Ke4 {[%emt 0:00:01]} 122. Re1+ {[%emt 0:00:01]} Kd3 {[%emt 0:00:01]} 123. Re7 {[%emt 0:00:05]} Kd4 {[%emt 0:00:08]} 124. Re1 {[%emt 0:00:15]} Re5 {[%emt 0:00:04]} 125. Rd1+ {[%emt 0:00:04]} Ke4 {[%emt 0:00:00]} 126. Re1+ {[%emt 0:00:04]} Kd5 {[%emt 0:00:01]} 127. Rd1+ {[%emt 0:00:01]} Ke6 {[%emt 0:00:00]} 128. Rf1 {[%emt 0:00:06]} Re4+ {[%emt 0:00:05]} 129. Kg3 {[%emt 0:00:01]} Ra4 {[%emt 0:00:12]} 130. Rf6+ {[%emt 0:00:04]} 1/2-1/2